[Event "*** Titled Tuesday 3|2 Blitz"]
[Site "Chess.com"]
[Date "2015.06.02"]
[Round "2"]
[White "Imre91"]
[Black "kleinebeer98"]
[Result "1-0"]
[WhiteElo "2557"]
[BlackElo "2270"]
[TimeControl "180+2"]
[EndTime "11:19:49 PDT"]
[Termination "Imre91 won by resignation"]

1. d4 {[%clk 0:03:01.9]} 1... d5 {[%clk 0:02:58.7]} 2. Nf3 {[%clk 0:02:59.9]}
2... Nf6 {[%clk 0:02:59.7]} 3. c4 {[%clk 0:03:01]} 3... c6 {[%clk 0:03:00.7]} 4.
Qb3 {[%clk 0:03:00.4]} 4... dxc4 {[%clk 0:03:00.8]} 5. Qxc4 {[%clk 0:03:00.8]}
5... g6 {[%clk 0:03:02.1]} 6. g3 {[%clk 0:03:01.4]} 6... Bg7 {[%clk 0:03:03.1]}
7. Bg2 {[%clk 0:03:02.6]} 7... O-O {[%clk 0:03:04.7]} 8. O-O {[%clk 0:03:03.7]}
8... Bg4 {[%clk 0:03:05.2]} 9. Nc3 {[%clk 0:03:03.7]} 9... Nbd7 {[%clk
0:03:05.1]} 10. Bf4 {[%clk 0:03:03.9]} 10... Rc8 {[%clk 0:03:05.3]} 11. Rac1
{[%clk 0:02:56.1]} 11... Nb6 {[%clk 0:02:55.1]} 12. Qb3 {[%clk 0:02:56.1]} 12...
Nfd5 {[%clk 0:02:51.8]} 13. Be5 {[%clk 0:02:55.2]} 13... Nxc3 {[%clk 0:02:40]}
14. bxc3 {[%clk 0:02:55.4]} 14... Bxe5 {[%clk 0:02:40.8]} 15. Nxe5 {[%clk
0:02:49.3]} 15... Bxe2 {[%clk 0:02:33.4]} 16. Rfe1 {[%clk 0:02:50.8]} 16... Ba6
{[%clk 0:02:34.5]} 17. a4 {[%clk 0:02:50.5]} 17... e6 {[%clk 0:02:31.3]} 18. h4
{[%clk 0:02:48.3]} 18... Nd7 {[%clk 0:02:30.2]} 19. Ng4 {[%clk 0:02:46]} 19...
c5 {[%clk 0:02:26.7]} 20. h5 {[%clk 0:02:44.5]} 20... Qg5 {[%clk 0:02:23.9]} 21.
Ne3 {[%clk 0:02:37.3]} 21... Qxh5 {[%clk 0:02:15.1]} 22. d5 {[%clk 0:02:35.6]}
22... e5 {[%clk 0:02:04.8]} 23. c4 {[%clk 0:02:33.2]} 23... f5 {[%clk
0:02:01.2]} 24. d6 {[%clk 0:02:30.6]} 24... f4 {[%clk 0:01:59.6]} 25. Nd5 {[%clk
0:02:30.2]} 25... Rce8 {[%clk 0:01:47.7]} 26. Nc7 {[%clk 0:02:27.6]} 26... Rb8
{[%clk 0:01:37.2]} 27. Bf3 {[%clk 0:02:27.6]} 27... Qh3 {[%clk 0:01:36.2]} 28.
Bg2 {[%clk 0:02:27.8]} 28... Qh5 {[%clk 0:01:27.2]} 29. Bf3 {[%clk 0:02:27.6]}
29... Qh3 {[%clk 0:01:28]} 30. gxf4 {[%clk 0:02:28.6]} 30... Qh4 {[%clk
0:01:16]} 31. Bd5+ {[%clk 0:02:22.2]} 31... Kh8 {[%clk 0:01:14.5]} 32. Ne6
{[%clk 0:02:22.5]} 32... Rf5 {[%clk 0:01:03.8]} 33. Qg3 {[%clk 0:02:22.3]} 33...
Qxg3+ {[%clk 0:00:57]} 34. fxg3 {[%clk 0:02:22.8]} 34... exf4 {[%clk 0:00:55.2]}
35. gxf4 {[%clk 0:02:23.9]} 35... Nf6 {[%clk 0:00:55.4]} 36. Re5 {[%clk
0:02:23.9]} 36... Rxe5 {[%clk 0:00:50.1]} 37. fxe5 {[%clk 0:02:24]} 37... Ng4
{[%clk 0:00:47.4]} 38. Re1 {[%clk 0:02:21.3]} 38... Nh6 {[%clk 0:00:40]} 39.
Nxc5 {[%clk 0:02:18.5]} 39... Nf5 {[%clk 0:00:38.3]} 40. d7 {[%clk 0:02:18.2]}
40... Kg7 {[%clk 0:00:38]} 41. d8=Q {[%clk 0:02:17.5]} 1-0

[Event "*** Titled Tuesday 3|2 Blitz"]
[Site "Chess.com"]
[Date "2015.06.02"]
[Round "2"]
[White "SGQ"]
[Black "1random"]
[Result "1-0"]
[WhiteElo "2040"]
[BlackElo "2036"]
[TimeControl "180+2"]
[EndTime "11:20:43 PDT"]
[Termination "SGQ won by checkmate"]

1. e4 {[%clk 0:03:01.9]} 1... c6 {[%clk 0:02:58.5]} 2. d4 {[%clk 0:03:01.8]}
2... d5 {[%clk 0:03:00.4]} 3. e5 {[%clk 0:03:02]} 3... Bf5 {[%clk 0:02:55.6]} 4.
Nf3 {[%clk 0:03:02.6]} 4... e6 {[%clk 0:02:56.1]} 5. Be2 {[%clk 0:03:02.9]} 5...
c5 {[%clk 0:02:52.8]} 6. O-O {[%clk 0:03:03.2]} 6... Nc6 {[%clk 0:02:53.7]} 7.
c4 {[%clk 0:02:56.3]} 7... dxc4 {[%clk 0:02:45.3]} 8. dxc5 {[%clk 0:02:48.3]}
8... Bxc5 {[%clk 0:02:40.9]} 9. Na3 {[%clk 0:02:44]} 9... Bxa3 {[%clk
0:02:27.3]} 10. bxa3 {[%clk 0:02:44]} 10... Bd3 {[%clk 0:02:28.2]} 11. Bb2
{[%clk 0:02:26.1]} 11... Nge7 {[%clk 0:02:11.5]} 12. Nd2 {[%clk 0:02:23.8]}
12... Ng6 {[%clk 0:01:34.1]} 13. Nxc4 {[%clk 0:02:13.6]} 13... Bxc4 {[%clk
0:01:33]} 14. Bxc4 {[%clk 0:02:13.1]} 14... Ngxe5 {[%clk 0:01:34.6]} 15. Bb3
{[%clk 0:01:57.9]} 15... O-O {[%clk 0:01:32.3]} 16. Qh5 {[%clk 0:01:57.1]} 16...
Ng6 {[%clk 0:01:13.4]} 17. Rad1 {[%clk 0:01:56.3]} 17... Qe7 {[%clk 0:01:11.3]}
18. Rd3 {[%clk 0:01:55.7]} 18... Nf4 {[%clk 0:00:48.2]} 19. Qg4 {[%clk
0:01:48.4]} 19... e5 {[%clk 0:00:49.2]} 20. Rg3 {[%clk 0:01:44.9]} 20... g6
{[%clk 0:00:33]} 21. Re1 {[%clk 0:01:44.7]} 21... h5 {[%clk 0:00:20.4]} 22. Qf3
{[%clk 0:01:25.3]} 22... Qf6 {[%clk 0:00:17.4]} 23. Qe4 {[%clk 0:01:22.6]} 23...
Rad8 {[%clk 0:00:15.6]} 24. Rf3 {[%clk 0:01:23.1]} 24... Qg5 {[%clk 0:00:15.3]}
25. g3 {[%clk 0:01:17.4]} 25... Nd4 {[%clk 0:00:12.6]} 26. Bxd4 {[%clk
0:01:16.6]} 26... Rxd4 {[%clk 0:00:11.1]} 27. Qxe5 {[%clk 0:01:17.2]} 27... Qxe5
{[%clk 0:00:07.3]} 28. Rxe5 {[%clk 0:01:17.9]} 28... Nd3 {[%clk 0:00:06.6]} 29.
Re7 {[%clk 0:01:13.3]} 29... Rd6 {[%clk 0:00:02.6]} 30. Rfxf7 {[%clk 0:01:12.3]}
30... Nc5 {[%clk 0:00:02.9]} 31. Rg7+ {[%clk 0:01:12.5]} 31... Kh8 {[%clk
0:00:03.9]} 32. Rh7# {[%clk 0:00:46.8]} 1-0

[Event "*** Titled Tuesday 3|2 Blitz"]
[Site "Chess.com"]
[Date "2015.06.02"]
[Round "2"]
[White "pedromartinez91"]
[Black "iFrancisco"]
[Result "1-0"]
[WhiteElo "2116"]
[BlackElo "2299"]
[TimeControl "180+2"]
[EndTime "11:20:48 PDT"]
[Termination "pedromartinez91 won by checkmate"]

1. e4 {[%clk 0:03:01.9]} 1... e5 {[%clk 0:03:00.7]} 2. Nf3 {[%clk 0:03:01.6]}
2... Nc6 {[%clk 0:03:01.8]} 3. Bb5 {[%clk 0:03:01.8]} 3... a6 {[%clk 0:03:02.6]}
4. Ba4 {[%clk 0:03:01.8]} 4... Nf6 {[%clk 0:03:02.5]} 5. O-O {[%clk 0:03:02.1]}
5... Nxe4 {[%clk 0:03:02.9]} 6. Qe2 {[%clk 0:02:55.1]} 6... Nc5 {[%clk
0:02:55.1]} 7. Bxc6 {[%clk 0:02:55.1]} 7... dxc6 {[%clk 0:02:55.4]} 8. d4 {[%clk
0:02:55.7]} 8... Ne6 {[%clk 0:02:52.3]} 9. dxe5 {[%clk 0:02:56.4]} 9... Bc5
{[%clk 0:02:48.7]} 10. Nc3 {[%clk 0:02:55.2]} 10... Nd4 {[%clk 0:02:38.3]} 11.
Nxd4 {[%clk 0:02:53.8]} 11... Qxd4 {[%clk 0:02:38.1]} 12. Be3 {[%clk 0:02:43.5]}
12... Qb4 {[%clk 0:02:12.3]} 13. a3 {[%clk 0:02:41.5]} 13... Qxb2 {[%clk
0:01:53.3]} 14. Na4 {[%clk 0:02:41.7]} 14... Qxe5 {[%clk 0:01:43.8]} 15. Nxc5
{[%clk 0:02:42.5]} 15... O-O {[%clk 0:01:43.7]} 16. Rab1 {[%clk 0:02:38.8]}
16... b6 {[%clk 0:01:40.7]} 17. Nd3 {[%clk 0:02:38.4]} 17... Qe7 {[%clk
0:01:37.4]} 18. Qf3 {[%clk 0:02:34.9]} 18... Bb7 {[%clk 0:01:28.3]} 19. Nc5
{[%clk 0:02:32.5]} 19... Bc8 {[%clk 0:01:22.3]} 20. Qxc6 {[%clk 0:02:29.6]}
20... Bf5 {[%clk 0:01:22.9]} 21. Nd3 {[%clk 0:02:24.1]} 21... Rad8 {[%clk
0:01:12.6]} 22. Rfd1 {[%clk 0:02:18.2]} 22... Be4 {[%clk 0:00:43]} 23. Qa4
{[%clk 0:02:17.3]} 23... a5 {[%clk 0:00:43]} 24. Bg5 {[%clk 0:02:04.8]} 24...
Qxg5 {[%clk 0:00:21.9]} 25. Qxe4 {[%clk 0:02:04.7]} 25... Rfe8 {[%clk
0:00:23.3]} 26. Qf3 {[%clk 0:02:02.7]} 26... Qe7 {[%clk 0:00:22.9]} 27. a4
{[%clk 0:01:59.7]} 27... Qa3 {[%clk 0:00:23.3]} 28. Ne5 {[%clk 0:01:43.5]} 28...
Rxd1+ {[%clk 0:00:17.6]} 29. Rxd1 {[%clk 0:01:42.1]} 29... Qe7 {[%clk
0:00:19.5]} 30. Nd3 {[%clk 0:01:40]} 30... Qa3 {[%clk 0:00:20.6]} 31. Re1 {[%clk
0:01:36.9]} 31... Rf8 {[%clk 0:00:17.9]} 32. Qc6 {[%clk 0:01:36.4]} 32... Qd6
{[%clk 0:00:14.6]} 33. Qxd6 {[%clk 0:01:34.7]} 33... cxd6 {[%clk 0:00:16.5]} 34.
Rb1 {[%clk 0:01:34.3]} 34... Rb8 {[%clk 0:00:16.4]} 35. f3 {[%clk 0:01:31.8]}
35... Kf8 {[%clk 0:00:18.3]} 36. Kf2 {[%clk 0:01:33.2]} 36... Rc8 {[%clk
0:00:19.8]} 37. Rb2 {[%clk 0:01:31.3]} 37... Rc4 {[%clk 0:00:20.9]} 38. Ra2
{[%clk 0:01:32.4]} 38... Ke7 {[%clk 0:00:21.5]} 39. Ke3 {[%clk 0:01:33.9]} 39...
Kd7 {[%clk 0:00:22.9]} 40. Ne1 {[%clk 0:01:34.7]} 40... Kc6 {[%clk 0:00:23.9]}
41. Kd3 {[%clk 0:01:36.2]} 41... Rc5 {[%clk 0:00:25.1]} 42. c3 {[%clk
0:01:37.5]} 42... Rh5 {[%clk 0:00:26]} 43. h3 {[%clk 0:01:37.4]} 43... Rh4
{[%clk 0:00:27.5]} 44. Nc2 {[%clk 0:01:38.7]} 44... Kd5 {[%clk 0:00:26.9]} 45.
Nd4 {[%clk 0:01:40.2]} 45... Rh6 {[%clk 0:00:28.2]} 46. Rb2 {[%clk 0:01:41.7]}
46... Ke5 {[%clk 0:00:27.5]} 47. Rxb6 {[%clk 0:01:42]} 47... Kf4 {[%clk
0:00:28.9]} 48. Rb5 {[%clk 0:01:41.8]} 48... g6 {[%clk 0:00:27.3]} 49. Ne2#
{[%clk 0:01:36.5]} 1-0

[Event "*** Titled Tuesday 3|2 Blitz"]
[Site "Chess.com"]
[Date "2015.06.02"]
[Round "2"]
[White "facu57"]
[Black "oggy1984"]
[Result "1-0"]
[WhiteElo "2197"]
[BlackElo "2315"]
[TimeControl "180+2"]
[EndTime "11:20:55 PDT"]
[Termination "facu57 won by resignation"]

1. e4 {[%clk 0:03:01.9]} 1... Nf6 {[%clk 0:02:55.1]} 2. Nc3 {[%clk 0:03:01.9]}
2... e5 {[%clk 0:02:47.6]} 3. Nf3 {[%clk 0:02:59.3]} 3... Nc6 {[%clk 0:02:45.4]}
4. Bb5 {[%clk 0:02:58.2]} 4... Bb4 {[%clk 0:02:40.3]} 5. O-O {[%clk 0:02:59.2]}
5... O-O {[%clk 0:02:37.8]} 6. d3 {[%clk 0:02:57.7]} 6... Bxc3 {[%clk
0:02:35.5]} 7. bxc3 {[%clk 0:02:57.3]} 7... d6 {[%clk 0:02:35.9]} 8. h3 {[%clk
0:02:56.8]} 8... Ne7 {[%clk 0:02:34]} 9. Bg5 {[%clk 0:02:54.3]} 9... Ng6 {[%clk
0:02:30.3]} 10. Re1 {[%clk 0:02:54.7]} 10... h6 {[%clk 0:02:26.3]} 11. Bd2
{[%clk 0:02:55.4]} 11... Bd7 {[%clk 0:02:20.9]} 12. Bc4 {[%clk 0:02:51.5]} 12...
a5 {[%clk 0:02:14]} 13. a4 {[%clk 0:02:51.3]} 13... b6 {[%clk 0:02:08.8]} 14. d4
{[%clk 0:02:47.7]} 14... Qe8 {[%clk 0:02:00]} 15. Bb3 {[%clk 0:02:45.8]} 15...
Bc6 {[%clk 0:01:51.2]} 16. d5 {[%clk 0:02:41.5]} 16... Bb7 {[%clk 0:01:48.4]}
17. Nh2 {[%clk 0:02:37.4]} 17... Nd7 {[%clk 0:01:43.6]} 18. Ng4 {[%clk
0:02:36.9]} 18... Qd8 {[%clk 0:01:40.6]} 19. Bc4 {[%clk 0:02:28.6]} 19... Nc5
{[%clk 0:01:38.3]} 20. Bb5 {[%clk 0:02:27]} 20... Bc8 {[%clk 0:01:33.4]} 21. Nh2
{[%clk 0:02:18.3]} 21... f5 {[%clk 0:01:29.5]} 22. exf5 {[%clk 0:02:07.7]} 22...
Bxf5 {[%clk 0:01:31.4]} 23. Be3 {[%clk 0:02:08.5]} 23... Qf6 {[%clk 0:01:27.3]}
24. Ng4 {[%clk 0:02:09.5]} 24... Qh4 {[%clk 0:01:21.1]} 25. Bd3 {[%clk
0:02:03.5]} 25... e4 {[%clk 0:01:17.1]} 26. Bf1 {[%clk 0:02:00.5]} 26... Rf7
{[%clk 0:01:13.7]} 27. c4 {[%clk 0:01:56.7]} 27... Raf8 {[%clk 0:01:09.6]} 28.
g3 {[%clk 0:01:51.8]} 28... Qd8 {[%clk 0:01:03.9]} 29. Bg2 {[%clk 0:01:46.7]}
29... Bxg4 {[%clk 0:01:00.5]} 30. Qxg4 {[%clk 0:01:45.7]} 30... Ne5 {[%clk
0:00:58.4]} 31. Qe2 {[%clk 0:01:45]} 31... Qd7 {[%clk 0:00:54.6]} 32. Bxc5
{[%clk 0:01:41]} 32... bxc5 {[%clk 0:00:45.2]} 33. Rf1 {[%clk 0:01:41.6]} 33...
Nf3+ {[%clk 0:00:41.4]} 34. Bxf3 {[%clk 0:01:35.8]} 34... Rxf3 {[%clk
0:00:20.9]} 35. Qxe4 {[%clk 0:01:31.6]} 35... Qxh3 {[%clk 0:00:21]} 36. Rab1
{[%clk 0:01:27.9]} 36... R8f5 {[%clk 0:00:17.2]} 37. Rb8+ {[%clk 0:01:22.9]}
37... Kh7 {[%clk 0:00:18.2]} 38. Rb3 {[%clk 0:01:17.3]} 38... Qg4 {[%clk
0:00:16.4]} 39. Qxg4 {[%clk 0:01:17.5]} 1-0

[Event "*** Titled Tuesday 3|2 Blitz"]
[Site "Chess.com"]
[Date "2015.06.02"]
[Round "2"]
[White "aripov96"]
[Black "WGMCarlaHeredia"]
[Result "1-0"]
[WhiteElo "2270"]
[BlackElo "2062"]
[TimeControl "180+2"]
[EndTime "11:21:26 PDT"]
[Termination "aripov96 won by resignation"]

1. e4 {[%clk 0:03:01.9]} 1... c6 {[%clk 0:03:00.6]} 2. Nc3 {[%clk 0:03:02.1]}
2... d5 {[%clk 0:02:58.8]} 3. d4 {[%clk 0:03:03]} 3... dxe4 {[%clk 0:02:58.7]}
4. Nxe4 {[%clk 0:03:04.9]} 4... Bf5 {[%clk 0:03:00.3]} 5. Ng3 {[%clk 0:03:05]}
5... Bg6 {[%clk 0:03:01.9]} 6. h4 {[%clk 0:03:05.9]} 6... h6 {[%clk 0:03:03.4]}
7. Nh3 {[%clk 0:03:07.2]} 7... e6 {[%clk 0:02:40.1]} 8. Nf4 {[%clk 0:03:06.8]}
8... Bh7 {[%clk 0:02:41.4]} 9. c3 {[%clk 0:03:03.6]} 9... Nf6 {[%clk 0:02:37.6]}
10. Bc4 {[%clk 0:03:01]} 10... Nd5 {[%clk 0:02:12.2]} 11. Qe2 {[%clk 0:02:38.5]}
11... Nxf4 {[%clk 0:01:58.9]} 12. Bxf4 {[%clk 0:02:38.6]} 12... Bd6 {[%clk
0:01:24.5]} 13. Bxd6 {[%clk 0:02:24.2]} 13... Qxd6 {[%clk 0:01:26.4]} 14. Nh5
{[%clk 0:02:24.9]} 14... O-O {[%clk 0:01:17.5]} 15. Qg4 {[%clk 0:02:11.6]} 15...
Bg6 {[%clk 0:01:12.7]} 16. Nxg7 {[%clk 0:01:58.9]} 16... Kxg7 {[%clk 0:00:58.8]}
17. h5 {[%clk 0:02:00.1]} 17... Nd7 {[%clk 0:00:54.2]} 18. hxg6 {[%clk
0:01:59.3]} 18... fxg6 {[%clk 0:00:56.1]} 19. O-O {[%clk 0:01:40.5]} 19... Rae8
{[%clk 0:00:33.4]} 20. Rae1 {[%clk 0:01:36.2]} 20... e5 {[%clk 0:00:23.8]} 21.
g3 {[%clk 0:00:56.6]} 21... e4 {[%clk 0:00:15.2]} 22. Kg2 {[%clk 0:00:47.4]}
22... Nf6 {[%clk 0:00:15]} 23. Qh4 {[%clk 0:00:43.7]} 23... h5 {[%clk
0:00:09.6]} 24. Be2 {[%clk 0:00:31]} 24... c5 {[%clk 0:00:09.1]} 25. dxc5 {[%clk
0:00:30.6]} 25... Qxc5 {[%clk 0:00:10]} 26. Bd1 {[%clk 0:00:23]} 26... Qc6
{[%clk 0:00:10.4]} 27. Kg1 {[%clk 0:00:21.9]} 27... Re5 {[%clk 0:00:10.2]} 28.
Qf4 {[%clk 0:00:20.6]} 28... Nd5 {[%clk 0:00:09.6]} 29. Qxe5+ {[%clk 0:00:21]}
29... Nf6 {[%clk 0:00:10.6]} 30. Bc2 {[%clk 0:00:20.5]} 30... Re8 {[%clk
0:00:11.1]} 31. Qd4 {[%clk 0:00:21.9]} 31... Qe6 {[%clk 0:00:11.3]} 32. Bb3
{[%clk 0:00:21.7]} 32... Qh3 {[%clk 0:00:11.5]} 33. Re3 {[%clk 0:00:17.8]} 33...
Rf8 {[%clk 0:00:11]} 34. f4 {[%clk 0:00:18.2]} 34... Kh6 {[%clk 0:00:11.4]} 35.
Qd6 {[%clk 0:00:14.4]} 35... Ng4 {[%clk 0:00:11.5]} 36. Qxf8+ {[%clk 0:00:15.3]}
1-0

[Event "*** Titled Tuesday 3|2 Blitz"]
[Site "Chess.com"]
[Date "2015.06.02"]
[Round "2"]
[White "Fh2411"]
[Black "Tal-Baronfew"]
[Result "0-1"]
[WhiteElo "2115"]
[BlackElo "2397"]
[TimeControl "180+2"]
[EndTime "11:21:40 PDT"]
[Termination "Tal-Baronfew won on time"]

1. d4 {[%clk 0:02:59.9]} 1... Nf6 {[%clk 0:03:00.7]} 2. Bf4 {[%clk 0:02:54.3]}
2... g6 {[%clk 0:02:59.4]} 3. e3 {[%clk 0:02:54.8]} 3... Bg7 {[%clk 0:03:00.6]}
4. Nf3 {[%clk 0:02:53.1]} 4... O-O {[%clk 0:03:01.1]} 5. h3 {[%clk 0:02:53.7]}
5... d6 {[%clk 0:03:01.6]} 6. Be2 {[%clk 0:02:52.8]} 6... Nbd7 {[%clk
0:03:02.7]} 7. O-O {[%clk 0:02:51.6]} 7... Re8 {[%clk 0:03:04.2]} 8. c4 {[%clk
0:02:39.1]} 8... e5 {[%clk 0:03:00.9]} 9. dxe5 {[%clk 0:02:32.6]} 9... Nh5
{[%clk 0:03:01.3]} 10. Bg5 {[%clk 0:02:16.7]} 10... f6 {[%clk 0:02:53.2]} 11.
exf6 {[%clk 0:02:14.6]} 11... Nhxf6 {[%clk 0:02:54.7]} 12. Nc3 {[%clk
0:02:11.6]} 12... h6 {[%clk 0:02:43.4]} 13. Bh4 {[%clk 0:02:08.2]} 13... g5
{[%clk 0:02:36.3]} 14. Bg3 {[%clk 0:02:08]} 14... Nc5 {[%clk 0:02:32.3]} 15. Nd4
{[%clk 0:01:44.2]} 15... Qe7 {[%clk 0:02:29.4]} 16. Rc1 {[%clk 0:01:38.1]} 16...
Qf7 {[%clk 0:02:23.6]} 17. b3 {[%clk 0:01:37.2]} 17... Bd7 {[%clk 0:02:21.6]}
18. Bf3 {[%clk 0:01:36.2]} 18... Rab8 {[%clk 0:02:20.6]} 19. Nd5 {[%clk
0:01:34.7]} 19... Nfe4 {[%clk 0:02:14.7]} 20. Nxc7 {[%clk 0:01:20.1]} 20... Rec8
{[%clk 0:01:55.7]} 21. Nd5 {[%clk 0:01:03.9]} 21... Nxg3 {[%clk 0:01:48.8]} 22.
fxg3 {[%clk 0:01:04.4]} 22... Qe8 {[%clk 0:01:36]} 23. Bh5 {[%clk 0:00:59.6]}
23... Qe5 {[%clk 0:01:32.4]} 24. Bf7+ {[%clk 0:00:46.9]} 24... Kh8 {[%clk
0:01:30.4]} 25. Kh2 {[%clk 0:00:27]} 25... Ne4 {[%clk 0:01:29.1]} 26. Qf3 {[%clk
0:00:19.2]} 26... Nd2 {[%clk 0:01:26.1]} 27. Qh5 {[%clk 0:00:18.7]} 27... Rf8
{[%clk 0:01:17]} 28. Rf2 {[%clk 0:00:14.8]} 28... Ne4 {[%clk 0:01:17.4]} 29. Rf3
{[%clk 0:00:16.2]} 29... Bc6 {[%clk 0:00:50.9]} 30. Rcf1 {[%clk 0:00:16.5]}
30... Bxd5 {[%clk 0:00:47.1]} 31. Bxd5 {[%clk 0:00:12.5]} 31... Nxg3 {[%clk
0:00:45.4]} 32. Rxg3 {[%clk 0:00:09.3]} 32... Rxf1 {[%clk 0:00:45.9]} 33. Nf3
{[%clk 0:00:10.1]} 33... Qe8 {[%clk 0:00:36.1]} 34. Bf7 {[%clk 0:00:07.3]} 34...
Qxe3 {[%clk 0:00:36.1]} 35. Rxg5 {[%clk 0:00:06.8]} 35... Rxf3 {[%clk
0:00:29.8]} 36. Rxg7 {[%clk 0:00:04]} 36... Qf4+ {[%clk 0:00:28.8]} 0-1

[Event "*** Titled Tuesday 3|2 Blitz"]
[Site "Chess.com"]
[Date "2015.06.02"]
[Round "2"]
[White "Tirantes"]
[Black "wonderfultime"]
[Result "0-1"]
[WhiteElo "2117"]
[BlackElo "2517"]
[TimeControl "180+2"]
[EndTime "11:21:40 PDT"]
[Termination "wonderfultime won by resignation"]

1. c4 {[%clk 0:03:01.9]} 1... c6 {[%clk 0:02:53.7]} 2. d4 {[%clk 0:02:59.1]}
2... d5 {[%clk 0:02:54.6]} 3. e3 {[%clk 0:03:00]} 3... Nf6 {[%clk 0:02:55.7]} 4.
Nf3 {[%clk 0:03:00.2]} 4... Bf5 {[%clk 0:02:56.5]} 5. Nc3 {[%clk 0:03:00.5]}
5... e6 {[%clk 0:02:57.9]} 6. Nh4 {[%clk 0:03:00.1]} 6... Be4 {[%clk 0:02:59.4]}
7. f3 {[%clk 0:03:00.2]} 7... Bg6 {[%clk 0:03:00.3]} 8. Qb3 {[%clk 0:02:58.7]}
8... Qb6 {[%clk 0:03:01.6]} 9. Bd2 {[%clk 0:02:57.6]} 9... Qxb3 {[%clk
0:02:44.1]} 10. axb3 {[%clk 0:02:57.6]} 10... Bc2 {[%clk 0:02:46]} 11. c5 {[%clk
0:02:48.8]} 11... g5 {[%clk 0:02:43]} 12. b4 {[%clk 0:02:32.3]} 12... gxh4
{[%clk 0:02:42.4]} 13. b5 {[%clk 0:02:33]} 13... Nfd7 {[%clk 0:02:24.5]} 14. Kf2
{[%clk 0:02:27.5]} 14... e5 {[%clk 0:02:17.3]} 15. b4 {[%clk 0:02:26]} 15... Bg7
{[%clk 0:02:17.9]} 16. Rc1 {[%clk 0:02:08.7]} 16... exd4 {[%clk 0:02:16.9]} 17.
Rxc2 {[%clk 0:02:08.8]} 17... dxc3 {[%clk 0:02:18.3]} 18. Bxc3 {[%clk
0:02:09.6]} 18... Bxc3 {[%clk 0:02:19.8]} 19. Rxc3 {[%clk 0:02:09.5]} 19... Nf6
{[%clk 0:02:15.7]} 20. Be2 {[%clk 0:02:06.8]} 20... cxb5 {[%clk 0:02:12]} 21.
Bxb5+ {[%clk 0:02:05]} 21... Nc6 {[%clk 0:02:13.3]} 22. Rb1 {[%clk 0:01:57.8]}
22... Ke7 {[%clk 0:02:13.6]} 23. Bf1 {[%clk 0:01:51.7]} 23... Rhc8 {[%clk
0:02:07.3]} 24. b5 {[%clk 0:01:51.7]} 24... Ne5 {[%clk 0:02:08]} 25. Rb4 {[%clk
0:01:50.5]} 25... Rc7 {[%clk 0:02:00.1]} 26. Rxh4 {[%clk 0:01:42.6]} 26... Rac8
{[%clk 0:02:01]} 27. g4 {[%clk 0:01:35.2]} 27... h6 {[%clk 0:01:41.1]} 28. Ra3
{[%clk 0:01:35.4]} 28... Rxc5 {[%clk 0:01:28.6]} 29. Rxa7 {[%clk 0:01:35.2]}
29... R8c7 {[%clk 0:01:30.1]} 30. Kg3 {[%clk 0:01:32.5]} 30... Rc3 {[%clk
0:01:04.4]} 31. b6 {[%clk 0:01:22.7]} 31... Rd7 {[%clk 0:01:04.2]} 32. Bb5
{[%clk 0:01:22.2]} 32... Nc6 {[%clk 0:01:05.3]} 33. Bxc6 {[%clk 0:01:13.4]}
33... Rxc6 {[%clk 0:01:07.2]} 34. Kf4 {[%clk 0:01:09.5]} 34... Rxb6 {[%clk
0:01:07.5]} 35. Rxh6 {[%clk 0:01:09.5]} 35... d4 {[%clk 0:01:09]} 36. g5 {[%clk
0:01:00.4]} 36... Nd5+ {[%clk 0:01:09.4]} 37. Ke4 {[%clk 0:00:59]} 37... Rxh6
{[%clk 0:00:45]} 38. gxh6 {[%clk 0:00:58]} 38... dxe3 {[%clk 0:00:46.9]} 39. h7
{[%clk 0:00:53.8]} 39... Nf6+ {[%clk 0:00:48.1]} 40. Kxe3 {[%clk 0:00:53.6]}
40... Nxh7 {[%clk 0:00:50]} 41. h4 {[%clk 0:00:53.3]} 41... Nf6 {[%clk
0:00:51.2]} 42. Kf4 {[%clk 0:00:53.1]} 42... Ke6 {[%clk 0:00:52.6]} 43. Kg5
{[%clk 0:00:52.7]} 43... Rd5+ {[%clk 0:00:53.9]} 44. Kh6 {[%clk 0:00:52.3]}
44... Rb5 {[%clk 0:00:53.4]} 45. f4 {[%clk 0:00:50.6]} 45... Rb4 {[%clk
0:00:52.1]} 46. Kg7 {[%clk 0:00:49.3]} 46... Nh5+ {[%clk 0:00:52.9]} 47. Kh6
{[%clk 0:00:46.5]} 47... Nxf4 {[%clk 0:00:54.8]} 48. h5 {[%clk 0:00:47.4]} 48...
Rb5 {[%clk 0:00:55.3]} 49. Kg7 {[%clk 0:00:45.1]} 49... Nxh5+ {[%clk 0:00:55.4]}
50. Kf8 {[%clk 0:00:44]} 50... f5 {[%clk 0:00:56.1]} 51. Ke8 {[%clk 0:00:39.5]}
51... f4 {[%clk 0:00:51.8]} 0-1